[Event "Qatar Masters 2024"]
[Site "Doha"]
[Date "2024.12.03"]
[Round "1.1"]
[White "Abdurakhmonov, Mukhammadali"]
[Black "Erigaisi Arjun"]
[Result "0-1"]
[Annotator "TA"]
[ECO "A46"]
[WhiteElo "2395"]
[BlackElo "2799"]
[PlyCount "84"]
[EventDate "2024.11.24"]
[EventType "swiss"]
[EventCountry "QAT"]
[SourceTitle "playchess.com"]
[Source "ChessBase"]
[SourceQuality "1"]
[TimeControl "40/5400+30:1800+30"]

{[%evp 9,84,0,9,10,0,14,8,0,20,13,10,11,0,12,12,-6,0,0,0,0,0,0,0,-8,0,-4,0,0,0,0,0,0,23,17,32,0,0,0,0,0,0,0,0,0,0,0,0,-15,-28,-30,-26,-98,-85,-69,-47,-87,-80,-107,-20,-77,-77,-77,-68,-79,-80,-221,-183,-220,-200,-199,-183,-510,-491,-644,-642,-656,-645]} 1. d4 {[%emt 0:00:11]} Nf6 {[%emt 0:00:09]} 2. Bf4 {[%emt 0:01:08]} e6 {[%emt 0:00:19]} 3. Nf3 {[%emt 0:01:10]} c5 {[%emt 0:00:08]} 4. e3 {[%emt 0:01:14]} Nc6 {[%emt 0:00:07]} 5. Nbd2 {[%emt 0:00:18]} h6 {[%emt 0:00:41]} 6. c3 {[%emt 0:10:31]} Nh5 {[%emt 0:00:15]} 7. dxc5 {[%emt 0:00:52]} Nxf4 {[%emt 0:05:58]} 8. exf4 {[%emt 0:00:05] The position is equal.} Bxc5 {[%emt 0:02:33]} 9. Ne4 {[%emt 0:00:37]} b6 {[%emt 0:00:27]} 10. Nd6+ {[%emt 0:01:22]} Bxd6 {[%emt 0:00:06]} 11. Qxd6 {[%emt 0:00:05]} Qe7 {[%emt 0:00:58]} 12. Qxe7+ {[%emt 0:01:06]} Kxe7 {[%emt 0:01:25]} 13. O-O-O {[%emt 0:02:48]} Bb7 {[%emt 0:00:18]} 14. h4 {[%emt 0:03:26]} Rac8 {[%emt 0:02:12]} 15. Kb1 {[%emt 0:00:10]} Rhd8 {[%emt 0:02:38]} 16. Be2 {[%emt 0:03:56]} d6 {[%emt 0:04:03]} 17. Rhe1 {[%emt 0:04:15]} Nb8 {[%emt 0:07:24][%cal Bc6b8,Bb8d7,Bd7f6,Bf6e4,Be4f2][%mdl 32]} 18. g3 {[%emt 0:03:26][%cal Bg2g3,Bg3g4,Bg4g5][%mdl 32]} Nd7 {[%emt 0:01:53]} 19. Nd4 {[%emt 0:01:22]} Nf6 {[%emt 0:00:25]} 20. g4 {[%emt 0:10:11]} Ba8 {[%emt 0:13:47]} 21. g5 {[%emt 0:08:19]} Ne4 {[%emt 0:02:51]} 22. f3 {[%emt 0:04:35]} Nf2 {[%emt 0:04:24]} 23. Rd2 {[%emt 0:00:24] [#] Ba6 is the strong threat.} Nh3 $1 {[%emt 0:00:16]} 24. f5 {[%emt 0:10:23] aiming for Ba6.} Nf4 $1 {[%emt 0:00:58]} (24... hxg5 $6 25. fxe6 gxh4 (25... fxe6 $2 26. Ba6 $18) 26. exf7 Kxf7 27. Rh1 $16) 25. Bd1 {[%emt 0:02:16]} hxg5 {[%emt 0:12:16]} 26. hxg5 {[%emt 0:01:47]} Rc5 {[%emt 0:05:22]} 27. Bc2 {[%emt 0:03:07]} e5 {[%emt 0:04:58]} 28. f6+ {[%emt 0:05:33]} gxf6 {[%emt 0:01:14]} 29. Nf5+ {[%emt 0:00:10]} Ke6 {[%emt 0:00:06]} 30. Ng7+ {[%emt 0:01:06]} (30. gxf6 $11 {remains equal.} Bd5 31. Rh2) 30... Kd7 $17 {[%emt 0:01:13]} 31. gxf6 {[%emt 0:01:04]} Bxf3 {[%emt 0:00:30]} 32. b4 {[%emt 0:03:42] [#]} Rd5 {[%emt 0:07:19]} (32... Rxc3 33. Rxe5 Nd5 34. Ba4+ (34. Rexd5 Bxd5 35. Rxd5 Rc4 $16) 34... Kc7 35. Rexd5 (35. Ne8+ Kb8 $11) 35... Bxd5 36. Rxd5 $16) 33. Rh2 {[%emt 0:00:53]} Bg4 {[%emt 0:02:56]} (33... Ng2 $17 34. Rf1 e4 35. Ba4+ b5) 34. Bb3 {[%emt 0:05:26]} (34. Re3 $11) 34... Rd3 {[%emt 0:02:22]} 35. Bxf7 {[%emt 0:00:28]} Rxc3 {[%emt 0:03:32] White must now prevent ...Rf8.} 36. Rh4 $1 {[%emt 0:05:55]} Rf8 {[%emt 0:06:44]} (36... Be6 {simplifies} 37. Nxe6 Nxe6 38. Rh7 Ng5) 37. Bb3 {[%emt 0:00:19] This costs White the game.} (37. Be8+ $17 {was the only defense.} Rxe8 38. Nxe8) 37... Ng2 $36 {[%emt 0:00:50][%mdl 2048] Black is on the roll.} 38. Rxg4 {[%emt 0:00:21]} Nxe1 {[%emt 0:00:04]} 39. Ba4+ {[%emt 0:03:13]} Kc8 {[%emt 0:00:05]} 40. Kb2 $2 {[%emt 0:01:19]} (40. Nf5 {is tougher.}) 40... Rf3 $19 {[%emt 0:01:22] Black is clearly winning.} 41. Ne6 {[%emt 0:03:04]} Nd3+ {[%emt 0:01:12]} ({Worse is} 41... R8xf6 42. Rg8+ Kb7 43. Rg7+ Ka6 44. Nc7+ Kb7 45. Ne6+ Kc8 46. Rg8+ Kb7 47. Rg7+ $11) 42. Kc2 {[%emt 0:02:12]} Rh8 {[%emt 0:00:13] Weighted Error Value: White=0.29 (precise) /Black=0.08 (flawless) .  Mistake:       	White=4     	Black=1      Inaccurate:     	White=3     	---        OK:         	White=12    	Black=13     Best:        	White=2     	Black=9      Strong:       	White=1     	Black=2} ({Not} 42... R8xf6 43. Rg8+ Kb7 44. Rg7+ Kc8 45. Rg8+ Kb7 46. Rg7+ Ka6 47. Nc7+ Kb7 48. Nd5+ (48. Ne6+ Ka8 $11) 48... Rf7 49. Rxf7+ Rxf7 50. Kxd3 $15) 0-1

[Event "Qatar Masters 2024"]
[Site "Doha"]
[Date "2024.12.03"]
[Round "1.2"]
[White "Abdusattorov, Nodirbek"]
[Black "Mahdavi, Reza"]
[Result "0-1"]
[Annotator "TA"]
[ECO "A65"]
[WhiteElo "2777"]
[BlackElo "2394"]
[PlyCount "70"]
[EventDate "2024.11.24"]
[EventType "swiss"]
[EventCountry "QAT"]
[SourceTitle "playchess.com"]
[Source "ChessBase"]
[SourceQuality "1"]
[TimeControl "40/5400+30:1800+30"]

{[%evp 20,70,19,22,39,16,14,10,56,25,42,29,49,48,93,78,96,66,85,72,129,115,264,227,222,0,0,0,0,0,0,0,0,0,0,-405,-399,-424,-347,-340,-328,-387,-366,-687,-683,-1125,-939,-29986,-29987,-29989,-29990,-29995,-1123]} 1. d4 {[%emt 0:00:14]} Nf6 {[%emt 0:00:06]} 2. c4 {[%emt 0:00:05]} g6 {[%emt 0:00:10]} 3. f3 {[%emt 0:00:14]} Bg7 {[%emt 0:00:20]} 4. e4 {[%emt 0:00:07]} d6 {[%emt 0:00:05]} 5. Nc3 {[%emt 0:00:09]} O-O {[%emt 0:00:07]} 6. Nge2 {[%emt 0:00:06]} c5 {[%emt 0:00:05]} 7. d5 {[%emt 0:00:09]} e6 {[%emt 0:00:05]} 8. Ng3 {[%emt 0:00:06]} exd5 {[%emt 0:01:31]} 9. cxd5 {[%emt 0:00:05]} a6 {[%emt 0:00:07]} 10. a4 {[%emt 0:00:06]} Nbd7 {[%emt 0:03:56]} 11. Be2 {[%emt 0:00:38]} Rb8 {[%emt 0:00:27]} 12. O-O {[%emt 0:00:22]} Ne8 {[%emt 0:02:15]} 13. Bf4 {[%emt 0:01:05]} f5 {[%emt 0:13:37]} (13... c4 $11 14. Bxc4 Qb6+ 15. Rf2 Bd4) 14. Qd2 {[%emt 0:14:32]} Ne5 {[%emt 0:05:28]} 15. Kh1 {[%emt 0:01:28]} Bd7 {[%emt 0:00:14]} 16. exf5 {[%emt 0:07:37]} gxf5 {[%emt 0:00:26]} 17. Nh5 {[%emt 0:01:43]} Bh8 {[%emt 0:02:23]} 18. Bh6 {[%emt 0:05:44]} Rf7 {[%emt 0:00:38]} 19. g4 {[%emt 0:00:06]} Ng7 {[%emt 0:13:51]} (19... Bg7 $142) 20. Rg1 $16 {[%emt 0:01:15]} (20. Bg5 $6 Qf8 $14) 20... b5 {[%emt 0:17:32]} (20... Ng6 $16) 21. axb5 {[%emt 0:00:24]} axb5 {[%emt 0:00:08]} 22. Ra7 $2 {[%emt 0:04:42]} (22. gxf5 $18 Bxf5 23. Bg5 (23. Bxb5 Nxf3 24. Nxg7 Bxg7 $17) (23. Nxb5 Bg6 $14)) 22... b4 $11 {[%emt 0:06:02]} 23. gxf5 {[%emt 0:00:12]} bxc3 {[%emt 0:02:00]} 24. Qxc3 {[%emt 0:00:43]} Qh4 {[%emt 0:05:58]} (24... Qb6 $2 25. Rxd7 Nxd7 26. Nxg7 $18 (26. Bxg7 Rxg7 27. Rxg7+ Kf8 $18)) 25. Bxg7 {[%emt 0:41:18]} Bxg7 {[%emt 0:00:15]} 26. Nxg7 {[%emt 0:00:03]} Kh8 $1 $40 {[%emt 0:00:14][%mdl 128] Black is up to no good.} 27. Bb5 $2 {[%emt 0:00:16][%mdl 8192]} Bxb5 $19 {[%emt 0:01:40]} ({Not} 27... Rxb5 28. Ra8+) 28. Rxf7 {[%emt 0:00:04] Black must now prevent Ne6.} Nxf7 {[%emt 0:00:08]} 29. Rg4 {[%emt 0:00:01] [#]} Qe7 {[%emt 0:08:05] ...Ne5 would now be deadly.} 30. Ne6+ {[%emt 0:11:16]} Ne5 {[%emt 0:00:12]} 31. Rg7 $2 {[%emt 0:01:47]} (31. f4 Qb7 32. Nc7 (32. fxe5 $2 {perishes.} Qxd5+ 33. Kg1 Qd1+ 34. Kf2 Qxg4 $19) 32... Qxc7 33. fxe5 dxe5 34. Kg1) 31... Qf6 {[%emt 0:01:45][%cal Ob5c4] aiming for ...Bc4!} 32. f4 {[%emt 0:00:13] [#]} Bc4 $1 {[%emt 0:02:03]} 33. Qd2 {[%emt 0:08:29]} (33. fxe5 Bxd5+) 33... Qxf5 {[%emt 0:01:22] Black mates.} 34. fxe5 {[%emt 0:00:01]} Qf3+ {[%emt 0:00:12]} 35. Rg2 {[%emt 0:02:00]} Bxd5 {[%emt 0:00:12] Never resign too early!   Weighted Error Value: White=1.01/Black=0.20 (precise) .  Loses game:     	White=1     	---        Missed win:     	White=1     	---        Mistake:       	White=1     	Black=3      Inaccurate:     	White=3     	Black=1      OK:         	White=4     	Black=6      Best:        	White=2     	Black=3      Strong:       	---       	Black=1} (35... Rxb2 $142 36. h3 Qxh3+ (36... Rxd2 {leads to mate.} 37. Nf4 Rxg2 38. Nxg2 Bxd5 39. exd6 Qxg2#) 37. Kg1 Rb1+ (37... Rxd2 38. Rxd2 Qe3+ 39. Rf2 Qe1+ 40. Kg2 Bxd5+ 41. Kg3 Qg1+ 42. Rg2 Qxg2+ 43. Kf4 Qf3+ 44. Kg5 Bxe6 45. exd6 Qf5+ 46. Kh6 Qg6#) 38. Qe1 Rxe1+ 39. Kf2 Rf1#) 0-1

[Event "Qatar Masters 2024"]
[Site "Doha"]
[Date "2024.12.03"]
[Round "1.3"]
[White "Amartuvshin, Ganzorig"]
[Black "Maghsoodloo, Parham"]
[Result "1/2-1/2"]
[Annotator "TA"]
[ECO "D86"]
[WhiteElo "2392"]
[BlackElo "2712"]
[PlyCount "118"]
[EventDate "2024.11.24"]
[EventType "swiss"]
[EventCountry "QAT"]
[SourceTitle "playchess.com"]
[Source "ChessBase"]
[SourceQuality "1"]
[TimeControl "40/5400+30:1800+30"]

{[%evp 29,118,0,0,-14,-12,-8,-22,-18,-24,-26,-14,-26,-19,-4,-18,-17,-12,-19,-9,-13,-6,-10,-8,-8,-8,-8,0,-5,0,0,0,0,0,0,0,0,0,0,0,0,0,0,0,0,0,0,0,0,0,0,0,0,0,0,0,0,0,0,0,0,0,0,0,0,0,0,0,0,6,6,6,6,6,0,0,0,0,0,0,0,0,0,0,0,0,0,0,0,0,0,0]} 1. d4 {[%emt 0:00:02]} Nf6 {[%emt 0:00:07]} 2. c4 {[%emt 0:00:03]} g6 {[%emt 0:00:04]} 3. Nc3 {[%emt 0:00:06]} d5 {[%emt 0:00:30]} 4. cxd5 {[%emt 0:00:30]} Nxd5 {[%emt 0:00:30]} 5. e4 {[%emt 0:00:30]} Nxc3 {[%emt 0:00:30]} 6. bxc3 {[%emt 0:00:30]} Bg7 {[%emt 0:00:30]} 7. Bc4 {[%emt 0:00:30]} a6 {[%emt 0:00:30] D86: Exchange Grünfeld: Classical Line (7 Bc4).} 8. a4 {[%emt 0:00:30]} c5 {[%emt 0:10:28]} 9. Ne2 {[%emt 0:02:38]} Nc6 {[%emt 0:02:16]} 10. d5 $146 {[%emt 0:05:17]} ({Predecessor:} 10. Be3 O-O 11. O-O Na5 12. Bd3 b6 13. dxc5 bxc5 14. Bxc5 Qc7 15. Bd4 e5 16. Be3 Rd8 17. Qc2 Be6 18. c4 Nxc4 {½-½ Lisak,J (2095)-Wagner,B (1890) W-ch GT253 corr 1989}) 10... Na5 {[%emt 0:06:49]} 11. Ba2 {[%emt 0:01:41]} b5 {[%emt 0:00:30]} 12. Be3 {[%emt 0:00:30]} Qc7 {[%emt 0:00:30]} 13. axb5 {[%emt 0:00:30]} axb5 {[%emt 0:00:30]} 14. O-O {[%emt 0:00:30]} O-O {[%emt 0:05:18]} 15. Qd2 {[%emt 0:06:26]} Bd7 {[%emt 0:06:21]} 16. Rad1 {[%emt 0:02:48]} Nb7 {[%emt 0:00:30]} 17. f4 {[%emt 0:00:30]} Nd6 {[%emt 0:00:30]} 18. e5 {[%emt 0:00:30]} Ne4 {[%emt 0:00:30]} 19. Qb2 {[%emt 0:00:30]} Bg4 {[%emt 0:00:30]} 20. Rc1 $1 {[%emt 0:00:30]} Qa5 {[%emt 0:00:30]} 21. Bb1 {[%emt 0:00:30]} Bxe2 {[%emt 0:00:30]} 22. Rfe1 {[%emt 0:00:30]} Nxc3 {[%emt 0:00:30]} 23. Qxc3 {[%emt 0:00:30]} Qxc3 {[%emt 0:00:30]} 24. Rxc3 {[%emt 0:00:30]} Bc4 {[%emt 0:00:30]} 25. Bxc5 {[%emt 0:00:30]} Bxd5 {[%emt 0:16:49]} 26. Bxe7 {[%emt 0:34:53]} Rfe8 {[%emt 0:00:30]} 27. Bd6 {[%emt 0:00:30]} Ra4 {[%emt 0:00:30]} 28. Rc5 {[%emt 0:07:18]} Rd4 {[%emt 0:10:53]} 29. Rxb5 {[%emt 0:11:11]} Bc6 {[%emt 0:00:47]} 30. Rb8 {[%emt 0:02:30]} Rxb8 $1 {[%emt 0:00:11]} 31. Bxb8 {[%emt 0:00:33]} Rxf4 {[%emt 0:00:04]} 32. Rc1 {[%emt 0:01:15]} Bb7 {[%emt 0:07:41]} 33. Ba2 {[%emt 0:01:45]} h5 {[%emt 0:06:02]} 34. Rf1 {[%emt 0:04:53]} Rxf1+ {[%emt 0:02:39]} 35. Kxf1 {[%emt 0:00:05]} Bc8 {[%emt 0:00:19]} 36. Bd6 {[%emt 0:00:48]} Bh6 {[%emt 0:00:11]} 37. h3 {[%emt 0:01:02]} Kg7 {[%emt 0:00:30]} 38. Be7 {[%emt 0:00:30]} Be3 {[%emt 0:00:30]} 39. Ke2 {[%emt 0:00:30]} Bd4 {[%emt 0:00:30]} 40. Bf6+ {[%emt 0:00:30]} Kf8 {[%emt 0:01:03]} 41. Bd5 {[%emt 0:31:41]} Bc3 {[%emt 0:30:30]} 42. Kd3 {[%emt 0:00:30]} Be1 {[%emt 0:00:30]} 43. Bc6 {[%emt 0:00:30]} Be6 {[%emt 0:00:00]} 44. Ke2 {[%emt 0:00:10]} Bg3 {[%emt 0:00:00]} 45. Kf3 {[%emt 0:00:30]} h4 {[%emt 0:00:28]} 46. Ke4 {[%emt 0:00:30]} Kg8 {[%emt 0:00:30]} 47. Bd5 {[%emt 0:00:30]} Bf5+ {[%emt 0:00:30]} 48. Ke3 {[%emt 0:00:30]} Kf8 {[%emt 0:00:30]} 49. Bf3 {[%emt 0:00:30]} Be6 {[%emt 0:00:30]} 50. Bc6 {[%emt 0:00:30]} Kg8 {[%emt 0:00:30]} 51. Bf3 {[%emt 0:00:30]} Kh7 {[%emt 0:00:30]} 52. Bg4 {[%emt 0:00:30]} Kh6 {[%emt 0:00:30]} 53. Bxe6 {[%emt 0:00:30]} fxe6 {[%emt 0:00:30]} 54. Ke4 {[%emt 0:00:30]} Kh5 {[%emt 0:00:30]} 55. Bd8 {[%emt 0:00:30]} g5 {[%emt 0:00:30]} 56. Bf6 {[%emt 0:00:30]} Kg6 {[%emt 0:00:30]} 57. Bd8 {[%emt 0:00:30]} Kh5 {[%emt 0:00:30]} 58. Bf6 $1 {[%emt 0:00:30]} Kg6 {[%emt 0:00:30]} 59. Bd8 {[%emt 0:00:30]} Kh5 {[%emt 0:00:30]} 1/2-1/2

[Event "Qatar Masters 2024"]
[Site "Doha"]
[Date "2024.12.03"]
[Round "1.4"]
[White "Artemiev, Vladislav"]
[Black "Vantika Agrawal"]
[Result "1/2-1/2"]
[Annotator "TA"]
[ECO "A13"]
[WhiteElo "2701"]
[BlackElo "2392"]
[PlyCount "89"]
[EventDate "2024.11.24"]
[EventType "swiss"]
[EventCountry "QAT"]
[SourceTitle "playchess.com"]
[Source "ChessBase"]
[SourceQuality "1"]
[TimeControl "40/5400+30:1800+30"]

{[%evp 10,89,21,0,0,4,16,24,26,13,16,11,17,7,18,19,11,0,0,0,0,0,-15,-10,0,0,0,0,0,0,0,0,0,0,0,0,5,0,0,0,0,0,41,21,31,13,24,38,60,61,59,8,0,16,8,10,9,0,0,0,0,0,0,0,0,0,0,0,0,0,0,0,0,0,0,0,0,0,0,-33,0,0]} 1. Nf3 {[%emt 0:01:27]} Nf6 {[%emt 0:01:11]} 2. g3 {[%emt 0:06:26]} d5 {[%emt 0:01:28]} 3. Bg2 {[%emt 0:00:25]} c5 {[%emt 0:01:10]} 4. O-O {[%emt 0:01:42]} e6 {[%emt 0:00:36]} 5. c4 {[%emt 0:09:00]} d4 {[%emt 0:03:33]} 6. e3 {[%emt 0:00:55]} Nc6 {[%emt 0:00:24]} 7. d3 {[%emt 0:01:35]} Bd6 {[%emt 0:01:48]} 8. exd4 {[%emt 0:09:00]} cxd4 {[%emt 0:00:15] White has an edge.} 9. Bg5 {[%emt 0:03:43]} h6 {[%emt 0:08:16]} 10. Bxf6 {[%emt 0:00:49]} Qxf6 {[%emt 0:00:37]} 11. Nbd2 {[%emt 0:02:43]} Qe7 {[%emt 0:01:43]} 12. a3 {[%emt 0:14:25]} a5 {[%emt 0:00:50]} 13. Re1 {[%emt 0:09:52]} O-O {[%emt 0:03:54]} 14. Rc1 {[%emt 0:08:39]} Rd8 {[%emt 0:10:50]} 15. Ne4 {[%emt 0:03:51]} Bc7 {[%emt 0:04:37]} 16. c5 {[%emt 0:00:26]} Bd7 {[%emt 0:18:23]} 17. Rc4 {[%emt 0:11:41]} e5 {[%emt 0:10:03]} 18. Nfd2 {[%emt 0:02:26]} Be6 {[%emt 0:06:52]} 19. Rc1 {[%emt 0:00:30]} a4 {[%emt 0:10:55]} 20. Nd6 {[%emt 0:05:08]} Bxd6 {[%emt 0:03:13]} 21. cxd6 {[%emt 0:00:05]} Qxd6 {[%emt 0:00:14]} 22. Ne4 $1 {[%emt 0:01:42]} Qc7 {[%emt 0:05:37]} 23. Nc5 {[%emt 0:00:07][%cal Oc5e6]} Bd5 {[%emt 0:00:34]} 24. Nxa4 {[%emt 0:00:09]} Bxg2 {[%emt 0:00:54]} 25. Kxg2 {[%emt 0:00:07]} b5 {[%emt 0:04:31]} 26. Nc5 {[%emt 0:01:04]} Qb6 {[%emt 0:00:26]} 27. Qf3 {[%emt 0:01:15][%cal Oc5d7] Threatening Nd7!} Rac8 {[%emt 0:00:24]} 28. Re2 {[%emt 0:02:08]} b4 {[%emt 0:00:35]} 29. a4 {[%emt 0:02:54]} Rc7 {[%emt 0:00:34]} 30. Nb3 {[%emt 0:00:29]} (30. Rec2 $14) 30... Na5 $1 $11 {[%emt 0:00:31]} 31. Rxc7 {[%emt 0:00:23]} Qxc7 {[%emt 0:00:03]} 32. Nxa5 {[%emt 0:00:34]} Qxa5 {[%emt 0:00:03][%mdl 4096] Endgame. KQR-KQR} 33. Qc6 {[%emt 0:00:42]} b3 {[%emt 0:01:10]} 34. h4 {[%emt 0:00:33]} Qd5+ {[%emt 0:00:44]} 35. Qxd5 {[%emt 0:00:06]} Rxd5 {[%emt 0:00:03] KR-KR} 36. f4 {[%emt 0:00:51]} exf4 {[%emt 0:00:49]} 37. Re8+ {[%emt 0:00:22]} Kh7 {[%emt 0:00:04]} 38. Rb8 {[%emt 0:00:18]} Ra5 $1 {[%emt 0:00:47]} 39. gxf4 {[%emt 0:00:14]} Rxa4 {[%emt 0:00:06]} 40. Rxb3 {[%emt 0:00:18]} Kg6 {[%emt 0:00:52]} 41. Kf3 {[%emt 0:30:35]} f5 {[%emt 0:04:28]} 42. Rb5 {[%emt 0:00:00]} (42. Ra3 $5 Rb4 $8 43. Ra5 $15) 42... Ra1 {[%emt 0:07:04]} 43. Rd5 {[%emt 0:00:00]} Rb1 {[%emt 0:01:06]} 44. Rxd4 {[%emt 0:00:00]} Rxb2 {[%emt 0:00:05]} 45. Rd5 {[%emt 0:00:00] Weighted Error Value: White=0.05 (flawless) /Black=0.03 (flawless) .  Mistake:       	White=1     	---        Inaccurate:     	White=1     	Black=2      OK:         	White=16    	Black=17     Best:        	White=3     	Black=4      Strong:       	White=1     	Black=2} 1/2-1/2

[Event "Qatar Masters 2024"]
[Site "Doha"]
[Date "2024.12.03"]
[Round "1.5"]
[White "Ashraf, Artin"]
[Black "Tabatabaei, M. Amin"]
[Result "1/2-1/2"]
[Annotator "TA"]
[ECO "B81"]
[WhiteElo "2388"]
[BlackElo "2686"]
[PlyCount "119"]
[EventDate "2024.11.24"]
[EventType "swiss"]
[EventCountry "QAT"]
[SourceTitle "playchess.com"]
[Source "ChessBase"]
[SourceQuality "1"]
[TimeControl "40/5400+30:1800+30"]

{[%evp 14,119,29,21,19,7,12,7,0,0,0,0,39,0,35,-10,23,0,8,5,113,33,42,-13,-18,-52,4,12,8,-18,-39,-36,-42,-62,-55,-62,-62,-65,-65,-56,-60,-56,-59,-71,0,0,0,0,0,0,0,0,0,0,0,0,0,-2,0,0,0,0,0,0,0,0,0,0,0,0,0,0,0,0,0,0,0,0,0,0,0,0,0,0,0,0,0,0,0,0,0,0,0,0,0,0,0,0,0,0,0,0,0,0,0,0,0,0]} 1. e4 {[%emt 0:00:09]} c5 {[%emt 0:00:31]} 2. Nf3 {[%emt 0:00:08]} d6 {[%emt 0:00:08]} 3. d4 {[%emt 0:00:05]} cxd4 {[%emt 0:00:06]} 4. Nxd4 {[%emt 0:00:06]} Nf6 {[%emt 0:00:07]} 5. Nc3 {[%emt 0:00:08]} a6 {[%emt 0:00:03]} 6. h3 {[%emt 0:00:09]} e6 {[%emt 0:00:45]} 7. g4 {[%emt 0:00:28]} h6 {[%emt 0:00:10]} 8. Bg2 {[%emt 0:00:09]} Be7 {[%emt 0:00:26]} 9. h4 {[%emt 0:00:10]} Nc6 {[%emt 0:03:47]} 10. g5 {[%emt 0:00:40]} hxg5 {[%emt 0:00:11]} 11. hxg5 {[%emt 0:00:03]} Rxh1+ {[%emt 0:00:17]} 12. Bxh1 {[%emt 0:00:03]} Nh7 {[%emt 0:02:03][%cal Bf6h7,Bh7f8,Bf8g6][%mdl 32]} 13. f4 {[%emt 0:00:29]} Qb6 {[%emt 0:07:17]} 14. Nf3 {[%emt 0:18:42]} Bd7 {[%emt 0:00:51]} 15. Qd2 {[%emt 0:14:19]} Rc8 {[%emt 0:04:20]} 16. b3 {[%emt 0:04:37] next Bb2 is good for White.} Na5 {[%emt 0:17:00]} (16... Ne5 $11 17. fxe5 Nxg5) 17. Qd3 {[%emt 0:20:22]} (17. Ba3 $16) 17... Nf8 {[%emt 0:07:23][%cal Od6d5]} 18. Bb2 {[%emt 0:04:37]} (18. Ne2 $14) 18... Ng6 $11 {[%emt 0:05:47]} 19. Ne2 {[%emt 0:02:31] [#]} d5 {[%emt 0:01:22]} 20. exd5 {[%emt 0:06:04]} Bb5 $132 {[%emt 0:08:16][%mdl 2048] Black puts up resistance} (20... Qb4+ $6 21. c3 Qb5 (21... Nxf4 $2 22. Qh7 $18) 22. Qxb5 axb5 23. dxe6 fxe6 24. Bc1 $16) 21. Qd4 {[%emt 0:23:23] Against Bb4+} (21. c4 $5 Nxc4 (21... Bxc4 22. bxc4 Qxb2 23. Rb1 $11) 22. bxc4 Bb4+ 23. Nd2 Nxf4 24. Qd4 (24. Nxf4 Rxc4 25. Qg3 Rc2 $19) 24... Qxd4 25. Nxd4 Bxc4 (25... Rxc4 $2 26. Nxb5 Rc2 27. Bc1 $18) 26. dxe6 $11) 21... Bc5 {[%emt 0:03:59][%mdl 1024] Black has compensation.} 22. Qe4 {[%emt 0:00:02] Strongly threatening Ned4.} (22. Qxg7 Bb4+ 23. c3 Qe3 $19) 22... Bf2+ {[%emt 0:10:01]} 23. Kf1 {[%emt 0:00:14][%cal Od5e6] [#] And now dxe6! would win.} Nc4 $1 {[%emt 0:09:54] ...Nd6 would now be deadly.} 24. Bd4 $1 {[%emt 0:04:18] [#]} (24. bxc4 $2 Rxc4 25. Qd3 Bg1 $19) (24. Bxg7 $2 Nd6 25. Bd4 Qa5 (25... Nxe4 $2 26. Bxb6 Bxe2+ 27. Kxe2 $19) (25... Bxd4 $2 26. Qxd4 Bxe2+ 27. Kxe2 $17) 26. Bxf2 Nxe4 $19) 24... Nd2+ $1 {[%emt 0:02:37]} 25. Nxd2 {[%emt 0:00:01]} Bxd4 {[%emt 0:00:14]} 26. c4 $1 {[%emt 0:00:20]} Bxa1 {[%emt 0:00:44]} 27. cxb5 {[%emt 0:00:02]} axb5 {[%emt 0:01:10] White must now prevent ...Rd8.} 28. dxe6 {[%emt 0:00:44]} Qxe6 {[%emt 0:01:15]} ({Black should try} 28... Rd8 $17 29. exf7+ Kxf7 30. Qf5+ Ke7 31. Qe4+ (31. Bd5 $2 Ne5 $19) 31... Qe6) 29. f5 $1 {[%emt 0:00:08] The position is equal.} (29. Qxe6+ fxe6 30. Bxb7 Rc2 $19) 29... Qxe4 {[%emt 0:02:46]} 30. Nxe4 {[%emt 0:00:03] aiming for Nd6+.} Ne7 {[%emt 0:00:10]} (30... Ne5 $5 31. Nd6+ $8 Kd7 32. Nxc8 Kxc8 $11) 31. Nd6+ {[%emt 0:00:05]} Kd7 {[%emt 0:00:02]} 32. Nxc8 {[%emt 0:00:08]} Kxc8 {[%emt 0:00:00][%mdl 4096] Endgame. KBN-KBN} 33. Be4 {[%emt 0:00:22]} Kc7 {[%emt 0:00:10]} 34. Nf4 {[%emt 0:01:24]} Kd6 {[%emt 0:00:11] ...Ke5 is the strong threat.} 35. Ke2 {[%emt 0:01:23]} Be5 {[%emt 0:04:09]} 36. g6 {[%emt 0:00:45]} fxg6 {[%emt 0:00:41]} (36... Bxf4 $2 {loses.} 37. gxf7 $18 (37. Bxb7 $2 f6 $19) (37. Bxb7 $2 f6 $19)) 37. Nxg6 {[%emt 0:00:02]} Nd5 {[%emt 0:00:15]} 38. Kf3 {[%emt 0:01:15]} b4 {[%emt 0:00:52]} 39. Nxe5 {[%emt 0:00:34]} Kxe5 {[%emt 0:00:02]} 40. Bxd5 {[%emt 0:00:01]} Kxd5 {[%emt 0:00:01] K3P-K3P} 41. Kf4 {[%emt 0:30:01]} Kd4 {[%emt 0:31:21]} 42. Kg5 {[%emt 0:00:50]} Ke4 {[%emt 0:01:40]} 43. Kg4 {[%emt 0:00:26]} Ke3 {[%emt 0:00:26]} 44. Kg5 {[%emt 0:00:12]} b6 {[%emt 0:00:30]} 45. Kg4 {[%emt 0:00:31]} Kd3 {[%emt 0:00:34]} (45... Ke4 $5) 46. Kg5 {[%emt 0:00:03]} Kd4 {[%emt 0:00:12]} 47. Kg6 {[%emt 0:00:22]} Ke4 {[%emt 0:00:07]} 48. Kg5 {[%emt 0:00:15]} Ke5 {[%emt 0:00:13]} 49. Kg6 {[%emt 0:01:07]} Kf4 {[%emt 0:00:36]} 50. f6 {[%emt 0:00:10]} gxf6 {[%emt 0:00:03]} 51. Kxf6 {[%emt 0:00:06] Intending Ke6 and mate. KPP-KPP} Ke4 {[%emt 0:00:01]} 52. Ke6 {[%emt 0:00:02]} Kd4 {[%emt 0:00:04]} 53. Kd6 {[%emt 0:00:10] White threatens Kc6 and mate.} Kc3 {[%emt 0:00:01]} 54. Kc6 {[%emt 0:00:08]} Kb2 {[%emt 0:00:02]} 55. Kb5 {[%emt 0:00:07]} Ka3 {[%emt 0:00:02]} 56. Kc4 {[%emt 0:00:08]} (56. Kxb6 {gets mated.} Kxa2 57. Kc5 Kxb3 58. Kd4 Kc2 59. Ke5 b3 60. Kd5 Kd3 61. Ke5 b2 62. Kf5 b1=Q (62... b1=B 63. Kg6 $11) 63. Kg6 Qb5 64. Kh6 Qc6+ 65. Kg7 Ke4 66. Kh8 Qd7 67. Kg8 Kf5 68. Kf8 Kg6 69. Kg8 Qg7#) 56... Kxa2 {[%emt 0:00:02] ( -> ...Ka3)} 57. Kxb4 {[%emt 0:00:07]} Kb2 {[%emt 0:00:02]} 58. Kc4 {[%emt 0:00:15]} Ka3 {[%emt 0:00:04]} 59. Kb5 {[%emt 0:00:05]} Kxb3 {[%emt 0:00:03]} 60. Kxb6 {[%emt 0:00:09] Weighted Error Value: White=0.10 (very precise) /Black=0.12 (very precise) .  Mistake:       	White=2     	Black=3      Inaccurate:     	White=4     	Black=2      OK:         	White=18    	Black=22     Best:        	White=5     	Black=3      Strong:       	White=3     	---        Brilliant:      	---       	Black=2} 1/2-1/2